Cogmind - Beta 14 @@@ ROGUE MODE // 2024.09.20 @ 19:49:14 Player: sionia Result: Destroyed by X-62 Marksman with Gauss Rifle Performance ------------- Evolutions (2) 1000 Regions Visited (7) 1400 Robots Destroyed (88) 440 Value Destroyed (2191) 2191 Prototype IDs (1) 20 Alien Tech Used (0) 0 Bonus (156) 156 TOTAL SCORE: 5207 Bonus ------- High Alert Combat Kills 106 Follower Combat Kills 50 Cogmind --------- Core Integrity 0/550 Matter 273/300 Energy 16/160 System Corruption 0% Temperature Cool (9) Movement Walking (120) Location -8/Materials Parts ------- > --- POWER (1) -------- Light Nuclear Core > --- PROPULSION (4) --- Aluminum Leg Aluminum Leg Aluminum Leg Aluminum Leg > --- UTILITY (4) ------ Large Storage Unit Advanced Weight Redist. System Improved Signal Interpreter Hacking Suite > --- WEAPON (2) ------- Proton Missile Launcher Katana > --- INVENTORY (15) --- Light Deuterium Engine Nuclear Core Aluminum Leg Aluminum Leg Improved Heat Sink Advanced Weight Redist. System Improved Sensor Array Improved Sensor Array Improved Signal Interpreter Melee Analysis Suite Heavy Particle Cannon Improved Datajack Katana Katana Katana Peak State ------------ > --- POWER ------------ Nuclear Core > --- PROPULSION ------- Aluminum Leg Aluminum Leg Carbon-fiber Leg Carbon-fiber Leg > --- UTILITY ---------- Large Storage Unit Improved Signal Interpreter Hacking Suite System Shield > --- WEAPON ----------- Heavy Particle Cannon Axe > --- INVENTORY -------- Light Deuterium Engine Light Nuclear Core Light Nuclear Core Aluminum Leg Aluminum Leg Aluminum Leg Aluminum Leg Improved Heat Sink EM Pulse Gun Heavy Particle Cannon Heavy Assault Rifle Proton Missile Launcher Improved Datajack Katana [Rating: 30] Favorites ----------- Power Light Nuclear Core Engine Cooled Ion Engine Power Core Light Nuclear Core Propulsion Aluminum Leg Treads Light Treads Leg Aluminum Leg Utility Improved Signal Interpreter Device Improved Sensor Array Storage Large Storage Unit Processor Improved Signal Interpreter Hackware Hacking Suite Weapon Katana Energy Gun EM Pulse Gun Energy Cannon Heavy Particle Cannon Ballistic Gun Gauss Rifle Launcher Rocket Launcher Special Weapon Mining Laser Slashing Weapon Katana Special Melee Weapon Datajack Build | -11 -10 -10 -9 -9 -9 -8 -8 ------- Run | Yrd Mat Min Mat Min Exi Min Mat Slots Evolved 4 | . . . 2 . . . 2 Power . | . . . . . . . . Propulsion 2 | . . . 2 . . . . Utility 2 | . . . . . . . 2 Weapon . | . . . . . . . . Parts Attached 80 | 4 1 6 17 3 . 4 45 Power 9 | . . . 2 . . 1 6 Engine 1 | . . . 1 . . . . Core 8 | . . . 1 . . 1 6 Reactor . | . . . . . . . . Propulsion 26 | 2 . . 2 3 . . 19 Treads 5 | 2 . . 1 1 . . 1 Leg 21 | . . . 1 2 . . 18 Wheel . | . . . . . . . . Hover . | . . . . . . . . Flight . | . . . . . . . . Utility 10 | . . . . . . . 10 Device 6 | . . . . . . . 6 Storage 1 | . . . . . . . 1 Processor 1 | . . . . . . . 1 Hackware 2 | . . . . . . . 2 Protection . | . . . . . . . . Artifact . | . . . . . . . . Weapon 35 | 2 1 6 13 . . 3 10 Energy Gun 4 | 1 . 1 1 . . 1 . Energy Cannon 2 | . . . . . . . 2 Ballistic Gun 8 | 1 . 1 5 . . . 1 Ballistic Cannon . | . . . . . . . . Launcher 6 | . . 2 2 . . 1 1 Special Weapon 1 | . . . . . . 1 . Impact Weapon . | . . . . . . . . Slashing Weapon 6 | . . . . . . . 6 Piercing Weapon . | . . . . . . . . Special Melee Weapon 8 | . 1 2 5 . . . . Unidentified Prototypes 1 | . . . 1 . . . . Parts Lost 27 | . . . 1 . . 4 22 Power 4 | . . . . . . 1 3 Propulsion 11 | . . . . . . 1 10 Utility 5 | . . . . . . . 5 Weapon 7 | . . . 1 . . 2 4 Highest Loss Streak 4 | . . . 1 . . 2 4 To Critical Strikes . | . . . . . . . . Average Slot Usage (%) 74 | . 47 56 52 66 66 54 85 Core 5 | . . . . . . 5 7 Treads 9 | . 28 28 24 28 22 16 . Leg 23 | . . . 8 15 22 22 29 Device 4 | . . . . . . . 7 Storage 4 | . . . . . . . 6 Processor 4 | . . . . . . . 8 Hackware 5 | . . . . . . . 8 Energy Gun 3 | . 14 11 1 11 11 7 . Energy Cannon 2 | . . . . . . . 4 Ballistic Gun 1 | . . 1 9 . . . . Slashing Weapon 6 | . . . . . . . 10 Special Melee Weapon 2 | . 4 11 6 11 11 1 . Peak Build Rating 30 | 4 4 5 9 16 16 20 30 Average Rating 19 | 2 3 4 5 9 16 17 24 On Entrance 7 | . 3 4 4 6 16 16 13 Naked Turns . | . . . . . . . . Heaviest Build 37 | 2 3 6 5 3 3 9 37 Greatest Support 58 | 3 3 3 10 3 3 48 58 Greatest Overweight (x) 1 | . . 1 1 . . . 1 Average Overweight (x) . | . . . . . . . . Largest Inventory Capacity 15 | 5 5 5 5 5 5 5 15 Average Capacity 9 | 5 5 5 5 5 5 5 12 Most Carried 15 | 2 4 5 5 5 5 5 15 Average Carried 8 | . 2 3 4 4 5 3 10 Final Capacity 15 | 5 5 5 5 5 5 5 15 Final Carried 15 | 1 3 5 5 5 5 4 15 Class Distribution -------------------- 47% | Scavenger-Mutant 42% | Mutant 7% | Scavenger-Assassin Dominant Class ---------------- Mutant | -10/Materials Mutant | -10/Mines Mutant | -9/Materials Mutant | -9/Mines Mutant | -9/Exiles Mutant | -8/Mines Scavenger-Mutant | -8/Materials Resources | -11 -10 -10 -9 -9 -9 -8 -8 ----------- Run | Yrd Mat Min Mat Min Exi Min Mat Matter Collected 1251 | 198 . 90 299 . . 245 419 Remotely . | . . . . . . . . Salvage Created 2797 | . . 131 303 . . 108 2255 Parts 198 | . . 9 17 . . 11 161 Haulers Intercepted 3 | . . . . . . . 3 Recyclers Shooed 6 | . . 3 . . . . 3 Parts Field Recycled . | . . . . . . . . Retrieved Matter . | . . . . . . . . Parts Self-Destructed . | . . . . . . . . Prevented . | . . . . . . . . Kills | -11 -10 -10 -9 -9 -9 -8 -8 ------- Run | Yrd Mat Min Mat Min Exi Min Mat Combat Hostiles Destroyed 60 | . . 5 10 . . 9 36 Melee 34 | . . . . . . . 34 Guns 16 | . . . 7 . . 9 . Cannons 1 | . . . . . . . 1 AOE 9 | . . 5 3 . . . 1 Classes Destroyed 12 | . . 5 1 . . . 6 Worker 7 | . . 2 . . . . 5 Builder 3 | . . . . . . . 3 Tunneler 4 | . . 1 1 . . . 2 Hauler 3 | . . . . . . . 3 Recycler 4 | . . 1 . . . . 3 Mechanic 1 | . . . . . . . 1 Operator 3 | . . . . . . . 3 Watcher 3 | . . . . . . . 3 Swarmer 24 | . . 3 3 . . 9 9 Grunt 23 | . . 2 4 . . . 17 Sentry 11 | . . . 3 . . . 8 Hunter 2 | . . . . . . . 2 Best Kill Streak 4 | . . 4 4 . . 4 4 Combat Bots Only 4 | . . 3 4 . . 4 3 Max Kills in Single Turn 2 | . . 2 1 . . 1 1 Gunslinging . | . . . . . . . . Exploded 2 | . . 2 1 . . . 1 Melee 1 | . . . . . . . 1 Uniques/NPCs Destroyed . | . . . . . . . . Combat | -11 -10 -10 -9 -9 -9 -8 -8 -------- Run | Yrd Mat Min Mat Min Exi Min Mat Hostile Shots Fired 469 | . . 24 64 . . 116 265 Missed 125 | . . 10 21 . . 26 68 Damage Taken 4011 | . . 137 539 . . 730 2605 Core 943 | . . 51 152 . . 174 566 Absorbed by Shields . | . . . . . . . . Core Remaining (%) 65 | 100 . 79 . . . 18 . Volleys Fired 115 | . . 24 49 . . 32 10 Largest 2 | . . 2 2 . . 1 1 Hottest 100 | . . 73 43 . . 100 75 Shots Fired 122 | . . 25 55 . . 32 10 Gun 91 | . . 13 45 . . 29 4 Cannon 3 | . . . . . . . 3 Launcher 25 | . . 12 10 . . . 3 Special 3 | . . . . . . 3 . Kinetic 49 | . . 2 43 . . . 4 Thermal 35 | . . . . . . 32 3 Explosive 22 | . . 12 10 . . . . Electromagnetic 16 | . . 11 2 . . . 3 Robot Hit Streak 13 | . . 5 13 . . 9 3 Robot Miss Streak 4 | . . 4 3 . . 4 2 Penetration Max . | . . . . . . . . Secondary Targets 1 | . . . 1 . . . . Max Gunslinging Chain 1 | . . . 1 . . . . Shots Hit Robots 205 | . . 19 45 . . 24 117 Core Hits 94 | . . 12 18 . . 12 52 Critical Kills . | . . . . . . . . Critical Parts Destroyed . | . . . . . . . . Critical Strikes 14 | . . 1 . . . . 13 Corrupt 1 | . . 1 . . . . . Sever 13 | . . . . . . . 13 Melee Attacks 165 | . . 6 6 . . 1 152 Impact . | . . . . . . . . Slashing 152 | . . . . . . . 152 Piercing . | . . . . . . . . Sneak Attacks 33 | . . 5 5 . . . 23 Combat Hostiles . | . . . . . . . . Follow-up Attacks 4 | . . . . . . . 4 Damage Inflicted 6535 | . . 661 704 . . 469 4701 Guns 996 | . . 79 445 . . 407 65 Cannons 25 | . . . . . . . 25 Explosions 958 | . . 581 259 . . . 118 Melee 4493 | . . . . . . . 4493 Ramming 15 | . . 1 . . . 14 . Kinetic 535 | . . 25 445 . . . 65 Thermal 511 | . . 31 . . . 455 25 Explosive 809 | . . 550 259 . . . . Electromagnetic 172 | . . 54 . . . . 118 Impact . | . . . . . . . . Slashing 4493 | . . . . . . . 4493 Piercing . | . . . . . . . . Highest Corruption . | . . . . . . . . Average Corruption . | . . . . . . . . Corruption Purged . | . . . . . . . . Corruption Blocked . | . . . . . . . . Overload Shots . | . . . . . . . . Overflow Damage 585 | . . 31 41 . . 4 509 Projectiles 4 | . . . . . . 4 . Explosions 72 | . . 31 41 . . . . Melee 509 | . . . . . . . 509 Knockbacks . | . . . . . . . . Impact . | . . . . . . . . Kinetic . | . . . . . . . . Secondary . | . . . . . . . . Self-Inflicted Damage 15 | . . 10 . . . 1 4 Shots 2 | . . 1 . . . . 1 Rammed 20 | . . 1 . . . 19 . Targets Rammed 20 | . . 1 . . . 19 . Kicked . | . . . . . . . . Crushed . | . . . . . . . . Highest Temperature 260 | . . 7 14 . . 260 78 Average Temperature 104 | . . 5 7 . . 125 25 Received Heat Transfer 1071 | . . 27 216 . . 9 819 Effects 1 | . . . . . . 1 . Energy Bleed 1 | . . . . . . 1 . Siege Activations . | . . . . . . . . Robots Corrupted . | . . . . . . . . Combat Hostiles . | . . . . . . . . Parts Fried . | . . . . . . . . Impact Corruptions . | . . . . . . . . Robots Melted . | . . . . . . . . Combat Hostiles . | . . . . . . . . Parts Melted 3 | . . . . . . 3 . Heat Transferred 964 | . . 50 . . . 877 37 Parts Sabotaged . | . . . . . . . . Parts Stolen . | . . . . . . . . Parts Stripped . | . . . . . . . . Power Chain Reactions 1 | . . 1 . . . . . Alert | -11 -10 -10 -9 -9 -9 -8 -8 ------- Run | Yrd Mat Min Mat Min Exi Min Mat Peak Influence 766 | . 15 318 487 217 . 216 766 Initial 141 | . . 5 123 141 . . 17 Average 258 | . . 153 334 154 . 76 303 Maximum Alert Level 3 | . . 1 2 1 . 1 3 Low Security (%) 44 | 100 100 64 15 98 . 86 34 Level 1 38 | . . 35 50 1 . 13 44 Level 2 15 | . . . 33 . . . 18 Level 3 1 | . . . . . . . 2 Level 4 . | . . . . . . . . Level 5 . | . . . . . . . . High Security . | . . . . . . . . Max Security . | . . . . . . . . Squads Dispatched 9 | . . . 1 1 . . 7 Investigation 4 | . . . . 1 . . 3 Extermination . | . . . . . . . . Reinforcement 5 | . . . 1 . . . 4 Assault . | . . . . . . . . Garrison . | . . . . . . . . Intercept . | . . . . . . . . Searches Triggered . | . . . . . . . . Construction Impeded . | . . . . . . . . Haulers Reinforced . | . . . . . . . . Active Scanning Responses . | . . . . . . . . Cargo Convoy Interrupts . | . . . . . . . . Stealth | -11 -10 -10 -9 -9 -9 -8 -8 --------- Run | Yrd Mat Min Mat Min Exi Min Mat Distress Signals 6 | . . . 2 . . . 4 Communications Jammed . | . . . . . . . . Distress Signals . | . . . . . . . . Times Spotted 120 | . 1 8 19 . . 17 75 Peak Tracking Total 6 | . . 5 6 . . 4 6 Tactical Retreats 22 | . . 1 1 . . 3 17 Traps | -11 -10 -10 -9 -9 -9 -8 -8 ------- Run | Yrd Mat Min Mat Min Exi Min Mat Traps Triggered 2 | . . . . . . . 2 Indirectly . | . . . . . . . . Trap Hack Attempts . | . . . . . . . . Triggered . | . . . . . . . . Disarmed . | . . . . . . . . Reprogrammed . | . . . . . . . . Reused . | . . . . . . . . Traps Extracted . | . . . . . . . . Installed . | . . . . . . . . Triggered . | . . . . . . . . Machines | -11 -10 -10 -9 -9 -9 -8 -8 ---------- Run | Yrd Mat Min Mat Min Exi Min Mat Machines Disabled 10 | . . 3 2 . . . 5 Max in Single Turn 1 | . . 1 1 . . . 1 Machines Repaired . | . . . . . . . . Machines Dismantled . | . . . . . . . . Machines Sabotaged . | . . . . . . . . Overloaded Fab Kills . | . . . . . . . . Hacking | -11 -10 -10 -9 -9 -9 -8 -8 --------- Run | Yrd Mat Min Mat Min Exi Min Mat Machines Accessed 11 | . 1 . . 1 4 . 5 Terminals 6 | . 1 . . . . . 5 Fabricators . | . . . . . . . . Repair Stations . | . . . . . . . . Recycling Units . | . . . . . . . . Scanalyzers . | . . . . . . . . Garrison Access . | . . . . . . . . Total Hacks 64 | . 3 . . 1 49 . 11 Successful 55 | . 1 . . 1 49 . 4 Failed 9 | . 2 . . . . . 7 Catastrophic 1 | . . . . . . . 1 Database Lockouts . | . . . . . . . . Manual 3 | . . . . . 3 . . Terminals 14 | . 3 . . . . . 11 Fabricators . | . . . . . . . . Repair Stations . | . . . . . . . . Recycling Units . | . . . . . . . . Scanalyzers . | . . . . . . . . Garrison Access . | . . . . . . . . Terminal Hacks 55 | . 1 . . 1 49 . 4 Record 49 | . . . . . 49 . . Open Door 1 | . . . . 1 . . . Branch Access Points 1 | . . . . . . . 1 Emergency Access Points 1 | . . . . . . . 1 Alert Level 2 | . . . . . . . 2 Locate Traps 1 | . 1 . . . . . . Fabricator Hacks . | . . . . . . . . Repair Station Hacks . | . . . . . . . . Recycling Unit Hacks . | . . . . . . . . Scanalyzer . | . . . . . . . . Garrison Access Hacks . | . . . . . . . . Unauthorized Hacks . | . . . . . . . . Terminals . | . . . . . . . . Fabricators . | . . . . . . . . Repair Stations . | . . . . . . . . Recycling Units . | . . . . . . . . Scanalyzers . | . . . . . . . . Garrison Access . | . . . . . . . . Data Cores Recovered . | . . . . . . . . Used . | . . . . . . . . Hacking Detections 3 | . 1 . . . . . 2 Full Trace Events 2 | . 1 . . . . . 1 Feedback Events . | . . . . . . . . Feedback Blocked . | . . . . . . . . Robot Schematics Acquired . | . . . . . . . . Robots Built . | . . . . . . . . Authchips . | . . . . . . . . Time . | . . . . . . . . Total Robot Build Rating . | . . . . . . . . Part Schematics Acquired . | . . . . . . . . Parts Built . | . . . . . . . . Authchips . | . . . . . . . . Time . | . . . . . . . . Total Part Build Rating . | . . . . . . . . Parts Repaired . | . . . . . . . . Time . | . . . . . . . . Parts Recycled . | . . . . . . . . Recycled Matter . | . . . . . . . . Retrieved Matter . | . . . . . . . . Retrieved Components . | . . . . . . . . Parts Scanalyzed . | . . . . . . . . Part Schematics Acquired . | . . . . . . . . Parts Damaged . | . . . . . . . . Bothacking | -11 -10 -10 -9 -9 -9 -8 -8 ------------ Run | Yrd Mat Min Mat Min Exi Min Mat Used RIF Installer . | . . . . . . . . Robots Hacked 8 | . . 3 4 . . 1 . Non-combat 7 | . . 3 4 . . . . Combat 1 | . . . . . . 1 . Robot Hacks Applied 11 | . . 5 5 . . 1 . parse_system 3 | . . . 2 . . 1 . no_distress 8 | . . 5 3 . . . . Relay Couplers Released . | . . . . . . . . Fabnet Peak Effective % . | . . . . . . . . Robots Rewired . | . . . . . . . . Allies Hacked . | . . . . . . . . Hacks Repelled . | . . . . . . . . Allies | -11 -10 -10 -9 -9 -9 -8 -8 -------- Run | Yrd Mat Min Mat Min Exi Min Mat Total Allies 2 | . . . . 2 . . . Largest Group 2 | . . . . 2 . . . Highest-Rated Group 41 | . . . . 41 . . . Highest-Rated Ally 31 | . . . . 31 . . . Total Orders . | . . . . . . . . Ally Attacks 4 | . . . . 4 . . . Total Damage 62 | . . . . 62 . . . Kills 3 | . . . . 3 . . . Allies Corrupted . | . . . . . . . . Allies Melted . | . . . . . . . . Intel | -11 -10 -10 -9 -9 -9 -8 -8 ------- Run | Yrd Mat Min Mat Min Exi Min Mat Robot Analysis Total . | . . . . . . . . Derelict Logs Recovered 3 | . . 1 . 2 . . . Drone Launches . | . . . . . . . . Drone Recoveries . | . . . . . . . . Exploration | -11 -10 -10 -9 -9 -9 -8 -8 ------------- Run | Yrd Mat Min Mat Min Exi Min Mat Turns Passed 4826 | 30 33 355 444 162 333 513 2956 Spaces Moved 4015 | 44 57 514 441 294 665 285 1715 Core 2187 | 44 57 514 421 294 665 58 134 Treads 227 | . . . . . . 227 . Legs 1601 | . . . 20 . . . 1581 Wheels . | . . . . . . . . Hover . | . . . . . . . . Flight . | . . . . . . . . Fastest Speed 50 | 50 50 50 50 50 50 50 50 Average Speed 88 | 50 50 55 61 50 50 137 121 Slowest Speed 190 | 50 50 100 120 50 50 160 190 Overloaded Moves . | . . . . . . . . Propulsion Burnouts . | . . . . . . . . Robots Hopped . | . . . . . . . . Cave-ins Triggered . | . . . . . . . . Exploration Rate (%) 51 | 3 19 86 31 38 91 45 95 Regions Visited 7 Branch Regions 4 Pre-discovered Areas 1 | . . . . . 1 . . Known Exits Taken 1 | . . . . . . 1 . Unknown Exits Taken 6 | 1 1 1 1 1 1 . . Scrap Searched 2 | . . . . 1 . 1 . Spaces Dug . | . . . . . . . . Terrain Destroyed 159 | . . 80 77 . . 1 1 Melee . | . . . . . . . . Projectile 2 | . . . . . . 1 1 AOE 157 | . . 80 77 . . . . Terrain Rammed . | . . . . . . . . Walls Destroyed . | . . . . . . . . Machines Disabled . | . . . . . . . . Actions | -11 -10 -10 -9 -9 -9 -8 -8 --------- Run | Yrd Mat Min Mat Min Exi Min Mat Total 4893 | 52 60 553 551 309 664 356 2348 Wait 425 | . . . 27 6 . 14 378 Move 4008 | 43 56 513 440 293 664 284 1715 Hop . | . . . . . . . . Pick Up 50 | 4 3 2 4 2 . . 35 Fast Attach 27 | . . . 5 3 . . 19 Attach 25 | 4 1 1 3 . . 3 13 Detach 6 | 1 . 1 2 . . 2 . Swap 28 | . . 5 9 . . 1 13 Drop 31 | . . . 6 5 . . 20 Fire 115 | . . 24 49 . . 32 10 Melee 158 | . . 6 6 . . 1 145 Ram 2 | . . 1 . . . 1 . Kick . | . . . . . . . . Crush 18 | . . . . . . 18 . Escape Stasis . | . . . . . . . . Rewire . | . . . . . . . . Trap . | . . . . . . . . Miscellaneous . | . . . . . . . . Route ------- -11/Scrapyard -10/Materials -10/Mines -9/Materials (discovered 4 exits: *Mat x2 / *Min / [*Sto]) -9/Mines -9/Exiles (discovered 2 exits: [*Min x2]) -8/Mines -8/Materials (discovered 3 exits: *Fac x3) History --------- Turn | Location | Event 3 | -11/Scrapyard | Discovered new exit (range 15) 31 | -11/Scrapyard | Entered Materials 60 | -10/Materials | Discovered new exit (range 8) 64 | -10/Materials | Entered Mines 132 | -10/Mines | Learned location of 1 exit from Materials 264 | -10/Mines | Discovered new exit (range 12) 267 | -10/Mines | Received a Rocket Launcher from a helpful Derelict 311 | -10/Mines | Build established: Mutant 419 | -10/Mines | Entered Materials 419 | -9/Materials | Evolved 2 slots: Propulsion x2 420 | -9/Materials | Identified exit to Materials 446 | -9/Materials | Discovered new exit (range 15) 685 | -9/Materials | Discovered new exit (range 14) 814 | -9/Materials | Discovered exit to Materials (range 14) 863 | -9/Materials | Entered Mines 889 | -9/Mines | Deemed a non-threat by the Exiles lab entrance 889 | -9/Mines | Discovered new exit (range 5) 901 | -9/Mines | Learned Materials emergency access door positions 946 | -9/Mines | Learned 2 Materials zone layouts 961 | -9/Mines | Met a Derelict shopkeep closing up shop 1025 | -9/Mines | Entered Exiles 1034 | -9/Exiles | Discovered new exit (range 15) 1050 | -9/Exiles | Met 8R-AWN 1058 | -9/Exiles | Met EX-HEX 1077 | -9/Exiles | Met EX-DEC 1089 | -9/Exiles | Visited The Gauntlet 1174 | -9/Exiles | Learned location of Zion (-6) 1197 | -9/Exiles | Discovered new exit (range 15) 1228 | -9/Exiles | Met EX-BIN 1358 | -9/Exiles | Entered Mines 1402 | -8/Mines | Core integrity fell below 50% 1536 | -8/Mines | Discovered exit to Materials (range 6) 1849 | -8/Mines | Core integrity fell below 20% 1871 | -8/Mines | Entered Materials 1871 | -8/Materials | Evolved 2 slots: Utility x2 1872 | -8/Materials | Identified exit to Factory 2448 | -8/Materials | Build established: Scavenger-Assassin 2564 | -8/Materials | Lost 4 parts (1p1n1u1w) 2641 | -8/Materials | Core integrity fell below 50% 2826 | -8/Materials | Build established: Scavenger-Mutant 3228 | -8/Materials | Discovered exit to Factory (range 7) 3523 | -8/Materials | Lost 3 parts (2n1u) 3967 | -8/Materials | Lost 3 parts (1p1u1w) 4310 | -8/Materials | Core integrity fell below 20% 4664 | -8/Materials | Discovered exit to Factory (range 15) 4827 | -8/Materials | Destroyed by X-62 Marksman with Gauss Rifle Last Messages --------------- 04776_ Connecting with Terminal... 04776_ ALERT: Suspicious activity at Terminal M012. Dispatching Investigation squad. 04780_ K-01 Serf collects debris. 04786_ ALERT: Suspicious intruders detected, dispatching Specialist reinforcements to area. 04796_ Material Compactor disabled. 04802_ R-06 Scavenger collects Imp. Hover Unit. 04803_ K-01 Serf cleans the Terminal. 04803_ Acquired 28 matter. 04806_ R-06 Scavenger collects Lgt. Deuterium Engine. 04809_ R-06 Scavenger collects Visual Processing Unit. 04819_ Penetrated by Slug. 04821_ Door malfunctions. 04823_ Penetrated by Slug. 04824_ G-47 Trooper destroyed. 04824_ Processing Tank disabled. 04825_ Penetrated by Slug. Map ----- +----------------------------------------------------+ | | | | | | | | | | | ????????????????#########????????????????????????? | | ???####???????? #????????????????????????? | | ???# ???????# #????????????????????????? | | #### ?????# #????????????????????????? | | # """ ## #????????????????????????? | | # """"" ## """ #????????????????????????? | | " # """"" ## """ "" #????????????????????????? | | " # """"" ## """ S"" #????????????????????????? | | # """ # "" #????????????????????????? | | * # % ######+#####????????????????????????? | | ######+########### ###################????????? | | = # # [ ! # #????????? | | ! # # # #????????? | | w ""# # "" !=# #????????? | | [% "# # "Y ==# #????????? | | """"" "" =%!g "# # "" # ########?# | | """"" "" = # # ?? ?# ]#?# | | """"" " g ###/######r#### ?# #?# | | ##+### [ #?# | | % + #?# | | ! @ ###### ]#?# | | ##########+### r #????# #?# | | #???# * %[!## ############ #????#! #?# | | #???# * ! ## #??????????# #????#######?# | | #???#[ ## #??????????# #????????????# | | #???# ## #??????????# ############?# | | #???# ## #??????????# ##/ #?# | | #???# + #?????????## ## !#?# | | #???# ## ########??# # " #?# | | #???# ## #[ #??# T" =# "" #?# | | #???# ## # """ #??# "! + "" #?# | | #???########### # """ #??# # "" "" #?# | | #?????????????# + """ #??# # """ #?# | | #?????????????# # #??####### !#?# | | #?????????????# # *#????????###########?# | | #+#####?????????## ########????????????????????# | | / #?????????# ########???????????????????# | | #?????????# #???????????????????# | | #?????????# T #?????????########### | | " #?????????# #?????????# /* # | | " **= #?????????# #### ########### # | | " **= #?????????#######??# # ## # | | *= #??????????????????# # """" =## """ # | | #??????????????????# # """" ##""" """ # | | #########????????????????# ![# """" ##"R """ # | +----------------------------------------------------+ Best States ------------- Heat Dissipation 41 Energy Generation 14 Energy Capacity 240 Matter Stores 300 Matter Capacity 300 Sight Range 16 Robot Scan Range 15 Terrain Scan Density 10 ECM Strength 1 Additional Mass Support 9 Evasion (%) 55 Recoil Reduction 2 Offensive Hacking 10 Defensive Hacking 10 Item Schematics ----------------- None Robot Schematics ------------------ None Fabricated ------------ Nothing Alien Tech Used ----------------- None Achievements -------------- I Spy Challenges ------------ None Game ------ Seed MicroSingularityMinigun Manual? 0 Play Time 01:14:55 Cumulative 8.3 hours Start 2024.09.20 @ 18:29:15 End 2024.09.20 @ 19:49:14 Sessions 1 Manual Loads 0 Difficulty Rogue Special Mode None Game No. 17 Rogue 16 Adventurer 1 Explorer 0 Win Type - Total 0 Types 0/0/0/0/0/0/0/0/0 Lore% 8 Gallery% 11 Achievement% 13 Wizard Run 0 Options --------- Layout 1 ASCII 0 Keyboard 0 Movement Mouse Keybinds 0 Fullscreen 1 Font 32/SmallcapsGlow Map View 50x35 Zoom Use 0% Tactical HUD 1 Map Filters NONE Filters NONE Steam 1 RUN: def8e456-7c0b-4ac4-ac61-e617e8119700